[Event "Titled Tuesday Blitz January 03 Late 2023"]
[White "Andreev, Eduard"]
[Black "Seletsky, Grigory"]
[WhiteFideId "14103400"]
[BlackFideId "14112191"]
[WhiteElo "2413"]
[BlackElo "2259"]
[Result "1-0"]
[Round "06"]
[TimeControl "180+2"]
[Date "2023.01.03"]
[WhiteClock "0:00:31"]
[BlackClock "0:00:11"]

1. Nf3 {[%clk 0:03:00]}  d5 {[%clk 0:02:58]} 2. g3 {[%clk 0:03:01]}  Nf6 {[%clk 0:02:57]} 3. Bg2 {[%clk 0:03:01]}  c6 {[%clk 0:02:56]} 4. O-O {[%clk 0:03:01]}  Bf5 {[%clk 0:02:56]} 5. d4 {[%clk 0:03:00]}  e6 {[%clk 0:02:56]} 6. c4 {[%clk 0:03:01]}  h6 {[%clk 0:02:55]} 7. Qb3 {[%clk 0:03:00]}  Qb6 {[%clk 0:02:55]} 8. Nc3 {[%clk 0:02:59]}  Nbd7 {[%clk 0:02:53]} 9. c5 {[%clk 0:02:51]}  Qxb3 {[%clk 0:02:52]} 10. axb3 {[%clk 0:02:51]}  a6 {[%clk 0:02:52]} 11. b4 {[%clk 0:02:51]}  Rc8 {[%clk 0:02:52]} 12. Nd2 {[%clk 0:02:47]}  Be7 {[%clk 0:02:49]} 13. Nb3 {[%clk 0:02:47]}  Bd8 {[%clk 0:02:48]} 14. Bf4 {[%clk 0:02:41]}  Bc7 {[%clk 0:02:29]} 15. Bd6 {[%clk 0:02:20]}  Bxd6 {[%clk 0:02:19]} 16. cxd6 {[%clk 0:02:21]}  Kd8 {[%clk 0:02:15]} 17. Nc5 {[%clk 0:02:21]}  Rb8 {[%clk 0:02:15]} 18. f3 {[%clk 0:02:15]}  Nxc5 {[%clk 0:02:06]} 19. bxc5 {[%clk 0:02:14]}  Nd7 {[%clk 0:02:05]} 20. e4 {[%clk 0:02:12]}  Bg6 {[%clk 0:02:04]} 21. b4 {[%clk 0:02:09]}  Re8 {[%clk 0:01:52]} 22. e5 {[%clk 0:02:07]}  Bd3 {[%clk 0:01:47]} 23. Rfd1 {[%clk 0:02:06]}  Bc4 {[%clk 0:01:45]} 24. Kf2 {[%clk 0:02:04]}  f6 {[%clk 0:01:42]} 25. f4 {[%clk 0:02:04]}  f5 {[%clk 0:01:36]} 26. h3 {[%clk 0:02:02]}  g5 {[%clk 0:01:34]} 27. Bf3 {[%clk 0:02:00]}  Rg8 {[%clk 0:01:28]} 28. Ke3 {[%clk 0:01:56]}  Nf8 {[%clk 0:01:28]} 29. Rg1 {[%clk 0:01:54]}  Ng6 {[%clk 0:01:27]} 30. Bh5 {[%clk 0:01:52]}  Kd7 {[%clk 0:01:20]} 31. Na4 {[%clk 0:01:48]}  Rbf8 {[%clk 0:01:19]} 32. Nb6+ {[%clk 0:01:47]}  Kd8 {[%clk 0:01:19]} 33. Nxc4 {[%clk 0:01:43]}  dxc4 {[%clk 0:01:19]} 34. Rac1 {[%clk 0:01:32]}  gxf4+ {[%clk 0:01:10]} 35. gxf4 {[%clk 0:01:33]}  Nh4 {[%clk 0:01:09]} 36. Bf7 {[%clk 0:00:57]}  Rxg1 {[%clk 0:01:06]} 37. Rxg1 {[%clk 0:00:57]}  Rxf7 {[%clk 0:01:06]} 38. Rg8+ {[%clk 0:00:57]}  Kd7 {[%clk 0:01:05]} 39. Rb8 {[%clk 0:00:57]}  Ng6 {[%clk 0:00:54]} 40. Rxb7+ {[%clk 0:00:55]}  Ke8 {[%clk 0:00:53]} 41. Rb8+ {[%clk 0:00:55]}  Kd7 {[%clk 0:00:53]} 42. Ra8 {[%clk 0:00:44]}  Rf8 {[%clk 0:00:47]} 43. Ra7+ {[%clk 0:00:44]}  Ke8 {[%clk 0:00:40]} 44. Rxa6 {[%clk 0:00:43]}  Kf7 {[%clk 0:00:39]} 45. Rxc6 {[%clk 0:00:43]}  Ra8 {[%clk 0:00:39]} 46. Rc7+ {[%clk 0:00:39]}  Ke8 {[%clk 0:00:37]} 47. b5 {[%clk 0:00:35]}  Ra3+ {[%clk 0:00:37]} 48. Kd2 {[%clk 0:00:35]}  Nxf4 {[%clk 0:00:36]} 49. b6 {[%clk 0:00:35]}  Nd5 {[%clk 0:00:29]} 50. b7 {[%clk 0:00:32]}  Ra2+ {[%clk 0:00:19]} 51. Kc1 {[%clk 0:00:30]}  Nxc7 {[%clk 0:00:11]} 52. dxc7 {[%clk 0:00:31]} 1-0


[Site "https://www.chess.com"]

[Event "Titled Tuesday Blitz January 03 Late 2023"]
[White "Carbone, Diego"]
[Black "Andrews, Todd"]
[WhiteFideId "3002179"]
[BlackFideId "2012456"]
[WhiteElo "2336"]
[BlackElo "2220"]
[Result "0-1"]
[Round "06"]
[TimeControl "180+2"]
[Date "2023.01.03"]
[WhiteClock "0:00:03"]
[BlackClock "0:00:09"]

1. d4 {[%clk 0:03:00]}  d5 {[%clk 0:02:57]} 2. c4 {[%clk 0:02:59]}  e5 {[%clk 0:02:57]} 3. dxe5 {[%clk 0:02:58]}  d4 {[%clk 0:02:58]} 4. Nf3 {[%clk 0:02:59]}  Nc6 {[%clk 0:02:58]} 5. a3 {[%clk 0:02:59]}  a5 {[%clk 0:02:58]} 6. Nbd2 {[%clk 0:02:23]}  Nge7 {[%clk 0:02:56]} 7. Nb3 {[%clk 0:02:20]}  Nf5 {[%clk 0:02:55]} 8. Bf4 {[%clk 0:02:15]}  a4 {[%clk 0:02:54]} 9. Nbd2 {[%clk 0:02:13]}  Be7 {[%clk 0:02:43]} 10. Qc2 {[%clk 0:02:09]}  O-O {[%clk 0:02:42]} 11. Ne4 {[%clk 0:02:06]}  h6 {[%clk 0:02:26]} 12. g4 {[%clk 0:01:46]}  Nh4 {[%clk 0:02:25]} 13. Nxh4 {[%clk 0:01:44]}  Bxh4 {[%clk 0:02:26]} 14. O-O-O {[%clk 0:01:44]}  Be6 {[%clk 0:01:56]} 15. Rg1 {[%clk 0:01:36]}  Bg5 {[%clk 0:01:56]} 16. e3 {[%clk 0:01:34]}  Bxf4 {[%clk 0:01:45]} 17. exf4 {[%clk 0:01:34]}  Na5 {[%clk 0:01:35]} 18. f5 {[%clk 0:01:31]}  Nb3+ {[%clk 0:01:35]} 19. Kb1 {[%clk 0:01:29]}  Bd7 {[%clk 0:01:33]} 20. Bd3 {[%clk 0:01:17]}  Bc6 {[%clk 0:01:31]} 21. f6 {[%clk 0:01:05]}  Re8 {[%clk 0:01:19]} 22. fxg7 {[%clk 0:01:00]}  Rxe5 {[%clk 0:01:19]} 23. f4 {[%clk 0:00:59]}  Re8 {[%clk 0:01:00]} 24. g5 {[%clk 0:00:57]}  hxg5 {[%clk 0:00:42]} 25. Nxg5 {[%clk 0:00:52]}  Qd7 {[%clk 0:00:18]} 26. Ne6 {[%clk 0:00:09]}  fxe6 {[%clk 0:00:17]} 27. Bh7+ {[%clk 0:00:09]}  Kf7 {[%clk 0:00:18]} 28. Qg6+ {[%clk 0:00:06]}  Ke7 {[%clk 0:00:18]} 29. g8=Q {[%clk 0:00:06]}  Rxg8 {[%clk 0:00:18]} 30. Bxg8 {[%clk 0:00:07]}  d3 {[%clk 0:00:15]} 31. Rge1 {[%clk 0:00:06]}  Nc5 {[%clk 0:00:14]} 32. Re5 {[%clk 0:00:03]}  Rf8 {[%clk 0:00:13]} 33. Rxc5 {[%clk 0:00:02]}  d2 {[%clk 0:00:11]} 34. Re5 {[%clk 0:00:03]}  Bf3 {[%clk 0:00:09]} 35. Rxe6+ {[%clk 0:00:03]}  Kd8 {[%clk 0:00:09]} 0-1


[Site "https://www.chess.com"]

[Event "Titled Tuesday Blitz January 03 Late 2023"]
[White "Forgacs, Attila Jr."]
[Black "Kulkarni, Rakesh"]
[WhiteFideId "773654"]
[BlackFideId "5037077"]
[WhiteElo "2264"]
[BlackElo "2321"]
[Result "0-1"]
[Round "06"]
[TimeControl "180+2"]
[Date "2023.01.03"]
[WhiteClock "0:00:11"]
[BlackClock "0:01:32"]

1. e4 {[%clk 0:03:00]}  d5 {[%clk 0:02:50]} 2. exd5 {[%clk 0:03:00]}  c6 {[%clk 0:02:45]} 3. dxc6 {[%clk 0:03:00]}  Nxc6 {[%clk 0:02:45]} 4. c3 {[%clk 0:03:00]}  e5 {[%clk 0:02:44]} 5. Nf3 {[%clk 0:03:00]}  e4 {[%clk 0:02:44]} 6. Ng1 {[%clk 0:02:55]}  Bc5 {[%clk 0:02:41]} 7. d4 {[%clk 0:02:53]}  exd3 {[%clk 0:02:40]} 8. Qxd3 {[%clk 0:02:52]}  Qe7+ {[%clk 0:02:38]} 9. Be3 {[%clk 0:02:52]}  Nf6 {[%clk 0:02:37]} 10. Be2 {[%clk 0:02:47]}  O-O {[%clk 0:02:33]} 11. Nf3 {[%clk 0:02:42]}  Rd8 {[%clk 0:02:28]} 12. Bxc5 {[%clk 0:02:32]}  Qxc5 {[%clk 0:02:27]} 13. Qc2 {[%clk 0:02:23]}  Bf5 {[%clk 0:02:20]} 14. Qa4 {[%clk 0:02:18]}  Re8 {[%clk 0:02:17]} 15. Kf1 {[%clk 0:01:34]}  Rxe2 {[%clk 0:01:56]} 16. Kxe2 {[%clk 0:01:31]}  Re8+ {[%clk 0:01:56]} 17. Kf1 {[%clk 0:01:32]}  Ng4 {[%clk 0:01:48]} 18. Qxg4 {[%clk 0:00:26]}  Bxg4 {[%clk 0:01:45]} 19. Nbd2 {[%clk 0:00:27]}  Qb5+ {[%clk 0:01:45]} 20. Kg1 {[%clk 0:00:26]}  Qxb2 {[%clk 0:01:46]} 21. Rf1 {[%clk 0:00:24]}  Bxf3 {[%clk 0:01:45]} 22. Nxf3 {[%clk 0:00:24]}  Qxc3 {[%clk 0:01:46]} 23. h4 {[%clk 0:00:24]}  Nd4 {[%clk 0:01:46]} 24. Rh3 {[%clk 0:00:25]}  Nxf3+ {[%clk 0:01:45]} 25. Rxf3 {[%clk 0:00:24]}  Qc4 {[%clk 0:01:46]} 26. Rd1 {[%clk 0:00:22]}  h6 {[%clk 0:01:46]} 27. g3 {[%clk 0:00:20]}  Qxa2 {[%clk 0:01:46]} 28. Rd7 {[%clk 0:00:19]}  b5 {[%clk 0:01:46]} 29. Rb7 {[%clk 0:00:18]}  a6 {[%clk 0:01:45]} 30. Ra7 {[%clk 0:00:17]}  Qe6 {[%clk 0:01:41]} 31. Re3 {[%clk 0:00:17]}  Qc6 {[%clk 0:01:38]} 32. Rxe8+ {[%clk 0:00:11]}  Qxe8 {[%clk 0:01:39]} 33. Rxa6 {[%clk 0:00:12]}  Qb8 {[%clk 0:01:38]} 34. Ra3 {[%clk 0:00:11]}  b4 {[%clk 0:01:33]} 35. Rb3 {[%clk 0:00:12]}  Qb5 {[%clk 0:01:33]} 36. f3 {[%clk 0:00:11]}  Qc5+ {[%clk 0:01:32]} 37. Re3 {[%clk 0:00:11]}  Qxe3+ {[%clk 0:01:32]} 0-1


[Site "https://www.chess.com"]

[Event "Titled Tuesday Blitz January 03 Late 2023"]
[White "Reprintsev, Alexander"]
[Black "Dudzinski, Pawel"]
[WhiteFideId "14100541"]
[BlackFideId "1117890"]
[WhiteElo "2253"]
[BlackElo "2186"]
[Result "0-1"]
[Round "06"]
[TimeControl "180+2"]
[Date "2023.01.03"]
[WhiteClock "0:00:02"]
[BlackClock "0:00:04"]

1. e4 {[%clk 0:02:38]}  c6 {[%clk 0:02:58]} 2. Nc3 {[%clk 0:02:36]}  d5 {[%clk 0:02:59]} 3. Nf3 {[%clk 0:02:36]}  dxe4 {[%clk 0:02:58]} 4. Nxe4 {[%clk 0:02:36]}  Nf6 {[%clk 0:02:58]} 5. Qe2 {[%clk 0:02:36]}  Nxe4 {[%clk 0:02:58]} 6. Qxe4 {[%clk 0:02:37]}  Qa5 {[%clk 0:02:59]} 7. c3 {[%clk 0:02:32]}  Bf5 {[%clk 0:02:59]} 8. Qf4 {[%clk 0:02:32]}  e6 {[%clk 0:02:59]} 9. d4 {[%clk 0:02:32]}  Be7 {[%clk 0:02:57]} 10. Be2 {[%clk 0:02:31]}  O-O {[%clk 0:02:57]} 11. O-O {[%clk 0:02:32]}  Nd7 {[%clk 0:02:58]} 12. a4 {[%clk 0:02:30]}  Qd8 {[%clk 0:02:55]} 13. b4 {[%clk 0:02:19]}  a5 {[%clk 0:02:49]} 14. b5 {[%clk 0:02:18]}  c5 {[%clk 0:02:40]} 15. Rd1 {[%clk 0:02:16]}  cxd4 {[%clk 0:02:15]} 16. Nxd4 {[%clk 0:02:15]}  Bg6 {[%clk 0:02:09]} 17. Qf3 {[%clk 0:02:11]}  Qc8 {[%clk 0:02:03]} 18. Bf1 {[%clk 0:01:41]}  Ne5 {[%clk 0:01:53]} 19. Qg3 {[%clk 0:01:39]}  Nc4 {[%clk 0:01:42]} 20. Nf3 {[%clk 0:01:33]}  Bf6 {[%clk 0:01:35]} 21. Bg5 {[%clk 0:01:30]}  Nb2 {[%clk 0:01:25]} 22. Bxf6 {[%clk 0:01:24]}  Nxd1 {[%clk 0:00:59]} 23. Bd4 {[%clk 0:00:56]}  Nxc3 {[%clk 0:00:51]} 24. Ne5 {[%clk 0:00:44]}  Ne4 {[%clk 0:00:42]} 25. Qe3 {[%clk 0:00:43]}  Nf6 {[%clk 0:00:38]} 26. Rc1 {[%clk 0:00:40]}  Qd8 {[%clk 0:00:38]} 27. Bb6 {[%clk 0:00:38]}  Nd5 {[%clk 0:00:33]} 28. Bxd8 {[%clk 0:00:33]}  Nxe3 {[%clk 0:00:33]} 29. Be7 {[%clk 0:00:25]}  Rfe8 {[%clk 0:00:32]} 30. fxe3 {[%clk 0:00:18]}  Rxe7 {[%clk 0:00:31]} 31. Be2 {[%clk 0:00:18]}  f6 {[%clk 0:00:30]} 32. Nc4 {[%clk 0:00:17]}  Rc8 {[%clk 0:00:17]} 33. Rd1 {[%clk 0:00:15]}  e5 {[%clk 0:00:16]} 34. Nxa5 {[%clk 0:00:15]}  Ra8 {[%clk 0:00:16]} 35. Bc4+ {[%clk 0:00:08]}  Bf7 {[%clk 0:00:14]} 36. Bxf7+ {[%clk 0:00:07]}  Kxf7 {[%clk 0:00:15]} 37. Nc4 {[%clk 0:00:07]}  Rxa4 {[%clk 0:00:15]} 38. Nd6+ {[%clk 0:00:08]}  Ke6 {[%clk 0:00:15]} 39. Nc8 {[%clk 0:00:07]}  Rb4 {[%clk 0:00:13]} 40. Rd6+ {[%clk 0:00:05]}  Kf7 {[%clk 0:00:12]} 41. Nxe7 {[%clk 0:00:05]}  Kxe7 {[%clk 0:00:13]} 42. Rb6 {[%clk 0:00:06]}  g5 {[%clk 0:00:10]} 43. Rxb7+ {[%clk 0:00:06]}  Ke6 {[%clk 0:00:10]} 44. h3 {[%clk 0:00:06]}  Kf5 {[%clk 0:00:11]} 45. Kf2 {[%clk 0:00:07]}  Ke4 {[%clk 0:00:11]} 46. Rb6 {[%clk 0:00:07]}  Rb2+ {[%clk 0:00:11]} 47. Kg3 {[%clk 0:00:07]}  f5 {[%clk 0:00:12]} 48. Rb8 {[%clk 0:00:05]}  f4+ {[%clk 0:00:12]} 49. exf4 {[%clk 0:00:05]}  gxf4+ {[%clk 0:00:13]} 50. Kg4 {[%clk 0:00:04]}  Rxg2+ {[%clk 0:00:13]} 51. Kh5 {[%clk 0:00:04]}  f3 {[%clk 0:00:13]} 52. b6 {[%clk 0:00:03]}  Rb2 {[%clk 0:00:08]} 53. Kg4 {[%clk 0:00:03]}  f2 {[%clk 0:00:07]} 54. Rf8 {[%clk 0:00:02]}  Ke3 {[%clk 0:00:02]} 55. Kg3 {[%clk 0:00:02]}  Rxb6 {[%clk 0:00:02]} 56. Rf3+ {[%clk 0:00:02]}  Ke4 {[%clk 0:00:03]} 57. Rxf2 {[%clk 0:00:01]}  Rg6+ {[%clk 0:00:03]} 58. Kh4 {[%clk 0:00:01]}  Ke3 {[%clk 0:00:04]} 59. Rf5 {[%clk 0:00:02]}  e4 {[%clk 0:00:04]} 60. Rf7 {[%clk 0:00:02]}  h6 {[%clk 0:00:03]} 61. Kh5 {[%clk 0:00:02]}  Rd6 {[%clk 0:00:04]} 0-1


[Site "https://www.chess.com"]

[Event "Titled Tuesday Blitz January 03 Late 2023"]
[White "Weisz, Bryan"]
[Black "reevecanada"]
[WhiteFideId "30934133"]
[WhiteElo "1973"]
[BlackElo "2486"]
[Result "0-1"]
[Round "06"]
[TimeControl "180+2"]
[Date "2023.01.03"]
[WhiteClock "0:01:32"]
[BlackClock "0:02:08"]

1. e4 {[%clk 0:03:00]}  c5 {[%clk 0:02:59]} 2. Nf3 {[%clk 0:03:00]}  d6 {[%clk 0:02:59]} 3. d4 {[%clk 0:03:01]}  cxd4 {[%clk 0:03:00]} 4. Nxd4 {[%clk 0:03:01]}  Nf6 {[%clk 0:03:00]} 5. Nc3 {[%clk 0:03:02]}  a6 {[%clk 0:03:00]} 6. Bg5 {[%clk 0:03:00]}  e6 {[%clk 0:03:00]} 7. f4 {[%clk 0:03:01]}  Be7 {[%clk 0:03:01]} 8. Qf3 {[%clk 0:03:01]}  Qc7 {[%clk 0:03:01]} 9. O-O-O {[%clk 0:03:01]}  O-O {[%clk 0:03:01]} 10. Bd3 {[%clk 0:02:59]}  b5 {[%clk 0:03:00]} 11. e5 {[%clk 0:02:40]}  Bb7 {[%clk 0:02:59]} 12. Qg3 {[%clk 0:02:27]}  dxe5 {[%clk 0:02:46]} 13. fxe5 {[%clk 0:02:27]}  Nd5 {[%clk 0:02:42]} 14. Ne4 {[%clk 0:02:18]}  Nc6 {[%clk 0:02:30]} 15. Qh4 {[%clk 0:02:13]}  Bxg5+ {[%clk 0:02:24]} 16. Nxg5 {[%clk 0:02:12]}  h6 {[%clk 0:02:23]} 17. Ngf3 {[%clk 0:01:58]}  Nxe5 {[%clk 0:02:19]} 18. Qe4 {[%clk 0:01:53]}  Nxd3+ {[%clk 0:02:18]} 19. Qxd3 {[%clk 0:01:45]}  Nf4 {[%clk 0:02:14]} 20. Qf1 {[%clk 0:01:35]}  Rac8 {[%clk 0:02:10]} 21. Kb1 {[%clk 0:01:31]}  e5 {[%clk 0:02:09]} 22. Nf5 {[%clk 0:01:31]}  Qxc2+ {[%clk 0:02:08]} 23. Ka1 {[%clk 0:01:32]}  Qxf5 {[%clk 0:02:08]} 0-1


[Site "https://www.chess.com"]

[Event "Titled Tuesday Blitz January 03 Late 2023"]
[White "Martinez, Marcel"]
[Black "Rego, Vinicius V. de Almeida"]
[WhiteFideId "2016249"]
[BlackFideId "2106485"]
[WhiteElo "2402"]
[BlackElo "2238"]
[Result "1-0"]
[Round "06"]
[TimeControl "180+2"]
[Date "2023.01.03"]
[WhiteClock "0:01:09"]
[BlackClock "0:00:02"]

1. e4 {[%clk 0:03:00]}  c5 {[%clk 0:02:59]} 2. Nf3 {[%clk 0:03:00]}  d6 {[%clk 0:02:53]} 3. d4 {[%clk 0:03:00]}  cxd4 {[%clk 0:02:53]} 4. Nxd4 {[%clk 0:03:00]}  Nf6 {[%clk 0:02:53]} 5. Nc3 {[%clk 0:03:00]}  g6 {[%clk 0:02:53]} 6. Bd2 {[%clk 0:03:00]}  Bg7 {[%clk 0:02:43]} 7. Nb3 {[%clk 0:02:59]}  O-O {[%clk 0:02:43]} 8. Be2 {[%clk 0:02:56]}  Nc6 {[%clk 0:02:42]} 9. O-O {[%clk 0:02:56]}  a5 {[%clk 0:02:31]} 10. a4 {[%clk 0:02:52]}  Be6 {[%clk 0:02:22]} 11. Bb5 {[%clk 0:02:49]}  Bxb3 {[%clk 0:02:21]} 12. cxb3 {[%clk 0:02:48]}  Nb4 {[%clk 0:02:20]} 13. Re1 {[%clk 0:02:44]}  Nd7 {[%clk 0:02:16]} 14. Be3 {[%clk 0:02:37]}  Nc5 {[%clk 0:02:12]} 15. Bc4 {[%clk 0:02:37]}  Rc8 {[%clk 0:01:52]} 16. f3 {[%clk 0:02:35]}  b6 {[%clk 0:01:48]} 17. Re2 {[%clk 0:02:34]}  Qc7 {[%clk 0:01:40]} 18. Nb5 {[%clk 0:02:28]}  Qb8 {[%clk 0:01:40]} 19. Rd2 {[%clk 0:02:24]}  Rfd8 {[%clk 0:01:32]} 20. Bg5 {[%clk 0:02:19]}  Qb7 {[%clk 0:01:26]} 21. Qe2 {[%clk 0:02:07]}  h6 {[%clk 0:01:22]} 22. Bh4 {[%clk 0:02:03]}  g5 {[%clk 0:01:16]} 23. Bf2 {[%clk 0:01:56]}  Nc6 {[%clk 0:01:14]} 24. Bd5 {[%clk 0:01:53]}  Qb8 {[%clk 0:00:57]} 25. Rad1 {[%clk 0:01:51]}  Ne5 {[%clk 0:00:41]} 26. h4 {[%clk 0:01:47]}  e6 {[%clk 0:00:37]} 27. Bc4 {[%clk 0:01:45]}  Nxa4 {[%clk 0:00:25]} 28. hxg5 {[%clk 0:01:38]}  hxg5 {[%clk 0:00:21]} 29. Be3 {[%clk 0:01:39]}  Nxc4 {[%clk 0:00:20]} 30. bxc4 {[%clk 0:01:38]}  Bf6 {[%clk 0:00:14]} 31. b3 {[%clk 0:01:36]}  Nc5 {[%clk 0:00:13]} 32. Rb1 {[%clk 0:01:27]}  d5 {[%clk 0:00:08]} 33. exd5 {[%clk 0:01:21]}  exd5 {[%clk 0:00:08]} 34. cxd5 {[%clk 0:01:21]}  Re8 {[%clk 0:00:08]} 35. Qf2 {[%clk 0:01:21]}  Nd7 {[%clk 0:00:05]} 36. Bd4 {[%clk 0:01:17]}  Ne5 {[%clk 0:00:05]} 37. d6 {[%clk 0:01:13]}  Rcd8 {[%clk 0:00:04]} 38. Rbd1 {[%clk 0:01:10]}  Re6 {[%clk 0:00:02]} 39. Bxb6 {[%clk 0:01:09]} 1-0


[Site "https://www.chess.com"]

[Event "Titled Tuesday Blitz January 03 Late 2023"]
[White "Vifleemskaia, Svetlana"]
[Black "Yashmetov, Mikhail"]
[WhiteFideId "4129490"]
[BlackFideId "24198900"]
[WhiteElo "1971"]
[BlackElo "2323"]
[Result "1/2-1/2"]
[Round "06"]
[TimeControl "180+2"]
[Date "2023.01.03"]
[WhiteClock "0:00:12"]
[BlackClock "0:00:09"]

1. d4 {[%clk 0:02:47]}  Nf6 {[%clk 0:02:59]} 2. c4 {[%clk 0:02:47]}  g6 {[%clk 0:02:59]} 3. Nc3 {[%clk 0:02:47]}  Bg7 {[%clk 0:03:00]} 4. e4 {[%clk 0:02:47]}  d6 {[%clk 0:03:00]} 5. Nge2 {[%clk 0:02:47]}  O-O {[%clk 0:03:01]} 6. Ng3 {[%clk 0:02:48]}  e5 {[%clk 0:02:58]} 7. d5 {[%clk 0:02:47]}  a5 {[%clk 0:02:58]} 8. Be2 {[%clk 0:02:46]}  Na6 {[%clk 0:02:58]} 9. Be3 {[%clk 0:02:46]}  Nc5 {[%clk 0:02:59]} 10. O-O {[%clk 0:02:46]}  Bd7 {[%clk 0:02:57]} 11. Rb1 {[%clk 0:02:45]}  c6 {[%clk 0:02:47]} 12. Qd2 {[%clk 0:02:34]}  Ng4 {[%clk 0:02:35]} 13. Bxg4 {[%clk 0:02:30]}  Bxg4 {[%clk 0:02:35]} 14. f3 {[%clk 0:02:30]}  Bd7 {[%clk 0:02:07]} 15. Rfd1 {[%clk 0:02:22]}  cxd5 {[%clk 0:02:07]} 16. Bxc5 {[%clk 0:02:07]}  dxc5 {[%clk 0:01:13]} 17. Qxd5 {[%clk 0:02:05]}  Be6 {[%clk 0:01:05]} 18. Qxc5 {[%clk 0:02:04]}  Qg5 {[%clk 0:00:52]} 19. b3 {[%clk 0:01:58]}  h5 {[%clk 0:00:50]} 20. Nd5 {[%clk 0:01:50]}  h4 {[%clk 0:00:48]} 21. Nf1 {[%clk 0:01:50]}  f5 {[%clk 0:00:28]} 22. Qe7 {[%clk 0:01:32]}  Qxe7 {[%clk 0:00:19]} 23. Nxe7+ {[%clk 0:01:32]}  Kf7 {[%clk 0:00:18]} 24. Nd5 {[%clk 0:01:28]}  Rfd8 {[%clk 0:00:13]} 25. Nc7 {[%clk 0:01:22]}  Rd4 {[%clk 0:00:08]} 26. Nxe6 {[%clk 0:00:53]}  Kxe6 {[%clk 0:00:09]} 27. Ne3 {[%clk 0:00:49]}  fxe4 {[%clk 0:00:07]} 28. fxe4 {[%clk 0:00:46]}  Rxe4 {[%clk 0:00:07]} 29. Nd5 {[%clk 0:00:46]}  Rf8 {[%clk 0:00:07]} 30. Rf1 {[%clk 0:00:41]}  Rf5 {[%clk 0:00:06]} 31. Rbe1 {[%clk 0:00:34]}  Rxe1 {[%clk 0:00:05]} 32. Rxe1 {[%clk 0:00:34]}  Bh6 {[%clk 0:00:06]} 33. Re4 {[%clk 0:00:31]}  g5 {[%clk 0:00:04]} 34. Ne3 {[%clk 0:00:24]}  Rf8 {[%clk 0:00:04]} 35. Nd5 {[%clk 0:00:21]}  Rf7 {[%clk 0:00:03]} 36. Ne3 {[%clk 0:00:19]}  Bf8 {[%clk 0:00:04]} 37. h3 {[%clk 0:00:06]}  Bc5 {[%clk 0:00:04]} 38. Kh2 {[%clk 0:00:06]}  Rf4 {[%clk 0:00:03]} 39. Rxf4 {[%clk 0:00:06]}  exf4 {[%clk 0:00:03]} 40. Nd5 {[%clk 0:00:03]}  Ke5 {[%clk 0:00:03]} 41. g4 {[%clk 0:00:01]}  fxg3+ {[%clk 0:00:03]} 42. Kg2 {[%clk 0:00:02]}  Ke4 {[%clk 0:00:03]} 43. Nc7 {[%clk 0:00:01]}  Kf5 {[%clk 0:00:03]} 44. Nd5 {[%clk 0:00:01]}  Bd4 {[%clk 0:00:04]} 45. Ne7+ {[%clk 0:00:01]}  Ke6 {[%clk 0:00:04]} 46. Nd5 {[%clk 0:00:02]}  Kf5 {[%clk 0:00:04]} 47. Ne7+ {[%clk 0:00:02]}  Kf4 {[%clk 0:00:05]} 48. Nd5+ {[%clk 0:00:02]}  Ke5 {[%clk 0:00:06]} 49. Ne7 {[%clk 0:00:02]}  Be3 {[%clk 0:00:06]} 50. Ng6+ {[%clk 0:00:02]}  Kf5 {[%clk 0:00:06]} 51. Ne7+ {[%clk 0:00:03]}  Kf6 {[%clk 0:00:07]} 52. Nd5+ {[%clk 0:00:04]}  Ke5 {[%clk 0:00:07]} 53. Kf3 {[%clk 0:00:04]}  Bf4 {[%clk 0:00:07]} 54. Ne7 {[%clk 0:00:04]}  Kf6 {[%clk 0:00:07]} 55. Nd5+ {[%clk 0:00:04]}  Kf5 {[%clk 0:00:08]} 56. Ne7+ {[%clk 0:00:04]}  Ke5 {[%clk 0:00:09]} 57. Nd5 {[%clk 0:00:05]}  Bc1 {[%clk 0:00:09]} 58. Ne7 {[%clk 0:00:05]}  Kd4 {[%clk 0:00:09]} 59. Nf5+ {[%clk 0:00:04]}  Kc3 {[%clk 0:00:09]} 60. Nd6 {[%clk 0:00:04]}  Kb2 {[%clk 0:00:10]} 61. Nxb7 {[%clk 0:00:04]}  Kxa2 {[%clk 0:00:10]} 62. Nxa5 {[%clk 0:00:04]}  Bd2 {[%clk 0:00:08]} 63. Nc6 {[%clk 0:00:04]}  Kxb3 {[%clk 0:00:08]} 64. Ne5 {[%clk 0:00:04]}  Bc3 {[%clk 0:00:08]} 65. Nf7 {[%clk 0:00:04]}  g4+ {[%clk 0:00:05]} 66. hxg4 {[%clk 0:00:03]}  Kxc4 {[%clk 0:00:05]} 67. Nd6+ {[%clk 0:00:03]}  Kd5 {[%clk 0:00:05]} 68. Nf5 {[%clk 0:00:03]}  Be5 {[%clk 0:00:05]} 69. Nxh4 {[%clk 0:00:03]}  Ke6 {[%clk 0:00:05]} 70. Ng2 {[%clk 0:00:03]}  Kf6 {[%clk 0:00:05]} 71. Ne3 {[%clk 0:00:03]}  Kg5 {[%clk 0:00:06]} 72. Nf5 {[%clk 0:00:04]}  Bb8 {[%clk 0:00:06]} 73. Nxg3 {[%clk 0:00:04]}  Kh4 {[%clk 0:00:05]} 74. Nf5+ {[%clk 0:00:04]}  Kg5 {[%clk 0:00:06]} 75. Ng3 {[%clk 0:00:04]}  Be5 {[%clk 0:00:07]} 76. Ne4+ {[%clk 0:00:04]}  Kg6 {[%clk 0:00:07]} 77. Ng3 {[%clk 0:00:04]}  Bc7 {[%clk 0:00:08]} 78. Ne4 {[%clk 0:00:05]}  Bb8 {[%clk 0:00:08]} 79. Ng3 {[%clk 0:00:05]}  Ba7 {[%clk 0:00:09]} 80. Ne4 {[%clk 0:00:05]}  Bb6 {[%clk 0:00:10]} 81. Ng3 {[%clk 0:00:06]}  Bc7 {[%clk 0:00:11]} 82. Nf5 {[%clk 0:00:07]}  Kg5 {[%clk 0:00:11]} 83. Ne3 {[%clk 0:00:07]}  Bf4 {[%clk 0:00:09]} 84. Nd5 {[%clk 0:00:08]}  Be5 {[%clk 0:00:09]} 85. Ne3 {[%clk 0:00:08]}  Bd4 {[%clk 0:00:10]} 86. Nc4 {[%clk 0:00:09]}  Bc5 {[%clk 0:00:10]} 87. Ne5 {[%clk 0:00:09]}  Be7 {[%clk 0:00:09]} 88. Nf7+ {[%clk 0:00:09]}  Kf6 {[%clk 0:00:09]} 89. Nh8 {[%clk 0:00:09]}  Kg7 {[%clk 0:00:07]} 90. Kf4 {[%clk 0:00:09]}  Bd6+ {[%clk 0:00:07]} 91. Kf5 {[%clk 0:00:10]}  Kxh8 {[%clk 0:00:07]} 92. Kg6 {[%clk 0:00:10]}  Kg8 {[%clk 0:00:08]} 93. g5 {[%clk 0:00:11]}  Bf4 {[%clk 0:00:08]} 94. Kf5 {[%clk 0:00:11]}  Bc1 {[%clk 0:00:09]} 95. g6 {[%clk 0:00:11]}  Bb2 {[%clk 0:00:09]} 96. g7 {[%clk 0:00:12]}  Kf7 {[%clk 0:00:09]} 97. g8=Q+ {[%clk 0:00:12]}  Kxg8 {[%clk 0:00:09]} 1/2-1/2


[Site "https://www.chess.com"]